fUSD/lending_fUSD_20240426
["ID","MTS","AMOUNT","RATE_DAILY","PERIOD"]
[323692776,1714165896230,-937.47,0.0001452,2]
[323692777,1714165896239,-563.05,0.0001452,2]
[323692778,1714165896249,-1806.19,0.0001452,2]
[323692779,1714165896259,-1571.07,0.0001452,2]
[323692780,1714165896269,-2572.91,0.0001452,2]
[323692781,1714165896280,-1736.03,0.0001452,2]
[323692782,1714165896293,-4550.03,0.0001452,2]
[323692783,1714165896303,-702.48,0.0001452,2]
[323692784,1714165896313,-2483.94,0.0001452,2]
[323692785,1714165896323,-683.53,0.0001452,2]
[323692786,1714165896334,-2118.68,0.0001452,2]
[323692787,1714165896345,-2305.98,0.0001452,2]
[323692788,1714165896355,-2824.94,0.0001452,2]
[323692789,1714165896368,-1519.98,0.0001452,2]
[323692790,1714165896378,-1443.87,0.0001452,2]
[323692791,1714165896389,-1079.67,0.0001452,2]
[323692792,1714165896399,-500.0,0.0001452,2]
[323692793,1714165896409,-5799.26,0.0001452,2]
[323692794,1714165896418,-2700.57,0.0001452,2]
[323692795,1714165896429,-1958.57,0.0001452,2]
[323692796,1714165896439,-1238.29,0.0001452,2]
[323692797,1714165896450,-2076.33,0.0001452,2]
[323692798,1714165896460,-726.92,0.0001452,2]
[323692799,1714165896470,-3054.76,0.0001452,2]
[323692800,1714165896713,-978.83,0.0001452,2]
[323692801,1714165896725,-2476.96,0.0001452,2]
[323692802,1714165896735,-897.14,0.0001452,2]
[323692803,1714165896744,-1563.14,0.0001452,2]
[323692804,1714165896754,-1893.28,0.0001452,2]
[323692805,1714165896764,-900.63,0.0001452,2]
[323692806,1714165896773,-1013.72,0.0001452,2]
[323692807,1714165896783,-718.21,0.0001452,2]
[323692808,1714165896793,-555.79,0.0001452,2]
[323692809,1714165896803,-6088.6,0.0001452,2]
[323692810,1714165896813,-1066.3,0.0001452,2]
[323692811,1714165896823,-500.0,0.0001452,2]
[323692812,1714165896832,-505.04,0.0001452,2]
[323692813,1714165896842,-2410.31,0.0001452,2]
[323692814,1714165896852,-820.43,0.0001452,2]
[323692815,1714165896862,-523.49,0.0001452,2]
[323692816,1714165896873,-908.81,0.0001452,2]
[323692817,1714165896882,-500.0,0.0001452,2]
[323692818,1714165896892,-1371.32,0.0001452,2]
[323692819,1714165896902,-2025.12,0.0001452,2]
[323692820,1714165896912,-560.23,0.0001452,2]
[323692821,1714165896922,-3137.06,0.0001452,2]
[323692822,1714165896932,-578.95,0.0001452,2]
[323692823,1714165896941,-995.94,0.0001452,2]
[323692824,1714165896951,-2682.02,0.0001452,2]
[323692825,1714165896961,-500.0,0.0001452,2]
[323692826,1714165896970,-500.0,0.0001452,2]
[323692827,1714165896980,-500.0,0.0001452,2]
[323692828,1714165896991,-1815.94,0.0001452,2]
[323692829,1714165897001,-500.0,0.0001452,2]
[323692830,1714165897011,-500.0,0.0001452,2]
[323692831,1714165897021,-201.521508,0.00014521,2]
[323692832,1714165897031,-2458.37,0.00014681,2]
[323692833,1714165897042,-409.3,0.00014785,2]
[323692834,1714165897052,-500.0,0.00014794,2]
[323692835,1714165897062,-615.87,0.00014794,2]
[323692836,1714165897072,-500.0,0.00014794,2]
[323692837,1714165897082,-209.3,0.00014794,2]
[323692838,1714165897093,-500.0,0.00014794,2]
[323692839,1714165897104,-609.49,0.00014794,2]
[323692840,1714165897114,-654.47,0.00014794,2]
[323692841,1714165897124,-678.23,0.00014794,2]
[323692842,1714165897134,-613.12,0.00014794,2]
[323692843,1714165897144,-646.77,0.00014794,2]
[323692844,1714165897154,-530.65,0.00014794,2]
[323692845,1714165897164,-880.46,0.00014794,2]
[323692846,1714165897174,-1006.3,0.00014794,2]
[323692847,1714165897183,-500.0,0.00014794,2]
[323692848,1714165897193,-500.0,0.00014794,2]
[323692849,1714165897202,-1261.56,0.00014794,2]
[323692850,1714165897212,-504.93,0.00014794,2]
[323692851,1714165897221,-1360.51,0.00014794,2]
[323692852,1714165897231,-1108.07,0.00014794,2]
[323692853,1714165897241,-565.11290293,0.00014794,2]
[323692854,1714165897250,-822.7,0.00014794,2]
[323692855,1714165897260,-543.02,0.00014794,2]
[323692856,1714165897269,-500.0,0.00014794,2]
[323692857,1714165897279,-1146.38,0.00014794,2]
[323692858,1714165897290,-1304.31,0.00014794,2]
[323692859,1714165897301,-560.91,0.00014794,2]
[323692860,1714165897311,-500.0,0.00014794,2]
[323692861,1714165897321,-500.0,0.00014794,2]
[323692862,1714165897331,-500.0,0.00014794,2]
[323692863,1714165897341,-921.09,0.00014794,2]
[323692864,1714165897351,-500.0,0.00014794,2]
[323692865,1714165897361,-700.07,0.00014794,2]
[323692866,1714165897372,-1367.84,0.00014794,2]
[323692867,1714165897383,-760.98,0.00014794,2]
[323692868,1714165897394,-748.97,0.00014794,2]
[323692869,1714165897403,-500.0,0.00014794,2]
[323692870,1714165897413,-726.54,0.00014794,2]
[323692871,1714165897423,-550.92,0.00014794,2]
[323692872,1714165897433,-1430.99,0.00014794,2]
[323692873,1714165897443,-570.48,0.00014794,2]
[323692874,1714165897453,-676.01,0.00014794,2]
[323692875,1714165897463,-500.0,0.00014794,2]
[323692876,1714165897472,-1217.26,0.00014794,2]
[323692877,1714165897482,-792.02,0.00014794,2]
[323692878,1714165897492,-500.0,0.00014794,2]
[323692879,1714165897502,-725.24,0.00014794,2]
[323692880,1714165897512,-872.88,0.00014794,2]
[323692881,1714165897521,-940.41,0.00014794,2]
[323692882,1714165897530,-509.95,0.00014794,2]
[323692883,1714165897540,-2000.0,0.00014794,2]
[323692884,1714165897550,-803.02,0.00014794,2]
[323692885,1714165897560,-363.21,0.00014794,2]
[323692886,1714165897570,-500.0,0.00014794,2]
[323692887,1714165897580,-749.95,0.00014794,2]
[323692888,1714165897590,-527.35,0.00014794,2]
[323692889,1714165897600,-500.0,0.00014794,2]
[323692890,1714165897610,-565.11,0.00014794,2]
[323692891,1714165897620,-656.68,0.00014794,2]
[323692892,1714165897630,-626.53,0.00014794,2]
[323692893,1714165897640,-1008.89,0.00014794,2]
[323692894,1714165897650,-491.69777049,0.00014794,2]
[323692895,1714165897660,-837.59,0.00014794,2]
[323692896,1714165897670,-525.53,0.00014794,2]
[323692897,1714165897680,-1849.17,0.00014794,2]
[323692898,1714165897690,-565.57,0.00014794,2]
[323692899,1714165897700,-500.0,0.00014794,2]
[323692900,1714165897709,-1095.79,0.00014794,2]
[323692901,1714165897719,-500.0,0.00014794,2]
[323692902,1714165897730,-1100.72,0.00014794,2]
[323692903,1714165897740,-500.0,0.00014794,2]
[323692904,1714165897749,-500.0,0.00014794,2]
[323692905,1714165897758,-609.39,0.00014794,2]
[323692906,1714165897768,-500.0,0.00014794,2]
[323692907,1714165897778,-1415.44,0.00014794,2]
[323692908,1714165897788,-721.08,0.00014794,2]
[323692909,1714165897798,-500.0,0.00014794,2]
[323692910,1714165897808,-521.34,0.00014794,2]
[323692911,1714165897818,-5617.73,0.00014794,2]
[323692912,1714165897828,-8630.93,0.00014794,2]
[323692913,1714165897838,-1052.38,0.00014794,2]
[323692914,1714165897848,-500.0,0.00014794,2]
[323692915,1714165897858,-1229.82,0.00014794,2]
[323692916,1714165897868,-6867.51,0.00014794,2]
[323692917,1714165897879,-600.27,0.00014794,2]
[323692918,1714165897889,-1794.51,0.00014794,2]
[323692919,1714165897899,-7720.32,0.00014794,2]
[323692920,1714165897909,-1596.74,0.00014794,2]
[323692921,1714165897919,-2414.19,0.00014794,2]
[323692922,1714165897930,-500.0,0.00014794,2]
[323692923,1714165897941,-2546.68,0.00014794,2]
[323692924,1714165897951,-11893.77,0.00014794,2]
[323692925,1714165897961,-500.0,0.00014794,2]
[323692926,1714165897972,-500.0,0.00014794,2]
[323692927,1714165897981,-1472.99,0.00014794,2]
[323692928,1714165897991,-1714.54,0.00014794,2]
[323692929,1714165898001,-500.0,0.00014794,2]
[323692930,1714165898010,-3379.18,0.00014794,2]
[323692931,1714165898020,-746.33,0.00014794,2]
[323692932,1714165898029,-500.0,0.00014794,2]
[323692933,1714165898039,-614.25973059,0.00014794,2]
[323692934,1714165898049,-1131.17,0.00014794,2]
[323692935,1714165898059,-1362.32,0.00014794,2]
[323692936,1714165898068,-635.79,0.00014794,2]
[323692937,1714165898078,-1226.03,0.00014794,2]
[323692938,1714165898087,-1261.3,0.00014794,2]
[323692939,1714165898097,-2565.0,0.00014794,2]
[323692940,1714165898107,-6474.87,0.00014794,2]
[323692941,1714165898116,-626.49,0.00014794,2]
[323692942,1714165898126,-5265.92,0.00014794,2]
[323692943,1714165898136,-7575.76,0.00014794,2]
[323692944,1714165898145,-959.47,0.00014794,2]
[323692945,1714165898155,-500.0,0.00014794,2]
[323692946,1714165898164,-894.84,0.00014794,2]
[323692947,1714165898174,-1029.44,0.00014794,2]
[323692948,1714165898183,-1594.94,0.00014794,2]
[323692949,1714165898193,-1585.92,0.00014794,2]
[323692950,1714165898203,-927.21,0.00014794,2]
[323692951,1714165898212,-29278.54,0.00014794,2]
[323692952,1714165898222,-598.42,0.00014794,2]
[323692953,1714165898231,-2169.32,0.00014794,2]
[323692954,1714165898240,-1031.64,0.00014794,2]
[323692955,1714165898250,-500.0,0.00014794,2]
[323692956,1714165898259,-3003.77,0.00014794,2]
[323692957,1714165898268,-500.0,0.00014794,2]
[323692958,1714165898278,-885.97,0.00014794,2]
[323692959,1714165898289,-1452.7,0.00014794,2]
[323692960,1714165898301,-472.15744659,0.00014794,2]
[323692961,1714165898311,-964.95,0.00014794,2]
[323692962,1714165898321,-1299.05,0.00014794,2]
[323692963,1714165898331,-6953.47,0.00014794,2]
[323692964,1714165898340,-598.29,0.00014794,2]
[323692965,1714165898349,-2182.8,0.00014794,2]
[323692966,1714165898358,-500.0,0.00014794,2]
[323692967,1714165898368,-2149.24,0.00014794,2]
[323692968,1714165898377,-1173.04,0.00014794,2]
[323692969,1714165898387,-831.79,0.00014794,2]
[323692970,1714165898396,-2022.3,0.00014794,2]
[323692971,1714165898406,-4234.92,0.00014794,2]
[323692972,1714165898416,-2096.72,0.00014794,2]
[323692973,1714165898425,-1713.59,0.00014794,2]
[323692974,1714165898434,-625.39,0.00014794,2]
[323692975,1714165898444,-3159.71,0.00014794,2]
[323692976,1714165898454,-1338.07,0.00014794,2]
[323692977,1714165898463,-629.77,0.00014794,2]
[323692978,1714165898473,-15953.33,0.00014794,2]
[323692979,1714165898483,-500.0,0.00014794,2]
[323692980,1714165898492,-8716.91,0.00014794,2]
[323692981,1714165898502,-2333.3,0.00014794,2]
[323692982,1714165898511,-2250.5,0.00014794,2]
[323692983,1714165898521,-4686.34,0.00014794,2]
[323692984,1714165898530,-2136.27,0.00014794,2]
[323692985,1714165898540,-1350.24,0.00014794,2]
[323692986,1714165898549,-1193.75,0.00014794,2]
[323692987,1714165898559,-1860.65,0.00014794,2]
[323692988,1714165898568,-1152.1,0.00014794,2]
[323692989,1714165898578,-3493.58,0.00014794,2]
[323692990,1714165898588,-720.21,0.00014794,2]
[323692991,1714165898598,-1609.49,0.00014794,2]
[323692992,1714165898607,-743.96,0.00014794,2]
[323692993,1714165898617,-4354.83,0.00014794,2]
[323692994,1714165898626,-902.48,0.00014794,2]
[323692995,1714165898635,-771.76,0.00014794,2]
[323692996,1714165898645,-937.47,0.00014794,2]
[323692997,1714165898654,-563.05,0.00014794,2]
[323692998,1714165898663,-1806.19,0.00014794,2]
[323692999,1714165898673,-1571.07,0.00014794,2]
[323693000,1714165898682,-2572.91,0.00014794,2]
[323693001,1714165898692,-1736.03,0.00014794,2]
[323693002,1714165898701,-4550.03,0.00014794,2]
[323693003,1714165898711,-702.48,0.00014794,2]
[323693004,1714165898721,-2483.94,0.00014794,2]
[323693005,1714165898731,-683.53,0.00014794,2]
[323693006,1714165898741,-2118.68,0.00014794,2]
[323693007,1714165898750,-2305.98,0.00014794,2]
[323693008,1714165898760,-2824.94,0.00014794,2]
[323693009,1714165898769,-1519.98,0.00014794,2]
[323693010,1714165898779,-1443.87,0.00014794,2]
[323693011,1714165898789,-1079.67,0.00014794,2]
[323693012,1714165898799,-5799.26,0.00014794,2]
[323693013,1714165898809,-500.0,0.00014794,2]
[323693014,1714165898818,-2700.57,0.00014794,2]
[323693015,1714165898828,-1958.57,0.00014794,2]
[323693016,1714165898837,-1238.29,0.00014794,2]
[323693017,1714165898847,-2076.33,0.00014794,2]
[323693018,1714165898857,-726.92,0.00014794,2]
[323693019,1714165898867,-3054.76,0.00014794,2]
[323693020,1714165898877,-978.83,0.00014794,2]
[323693021,1714165898887,-2476.96,0.00014794,2]
[323693022,1714165898897,-897.14,0.00014794,2]
[323693023,1714165898907,-1563.14,0.00014794,2]
[323693024,1714165898917,-1893.28,0.00014794,2]
[323693025,1714165898926,-1013.72,0.00014794,2]
[323693026,1714165898936,-900.63,0.00014794,2]
[323693027,1714165898946,-718.21,0.00014794,2]
[323693028,1714165898955,-555.79,0.00014794,2]
[323693029,1714165898965,-6088.6,0.00014794,2]
[323693030,1714165898974,-1066.3,0.00014794,2]
[323693031,1714165898984,-505.04,0.00014794,2]
[323693032,1714165898994,-500.0,0.00014794,2]
[323693033,1714165899004,-2410.31,0.00014794,2]
[323693034,1714165899013,-820.43,0.00014794,2]
[323693035,1714165899023,-523.49,0.00014794,2]
[323693036,1714165899033,-908.81,0.00014794,2]
[323693037,1714165899044,-500.0,0.00014794,2]
[323693038,1714165899054,-1371.32,0.00014794,2]
[323693039,1714165899064,-560.23,0.00014794,2]
[323693040,1714165899073,-2025.12,0.00014794,2]
[323693041,1714165899083,-3137.06,0.00014794,2]
[323693042,1714165899093,-578.95,0.00014794,2]
[323693043,1714165899103,-995.94,0.00014794,2]
[323693044,1714165899112,-500.0,0.00014794,2]
[323693045,1714165899121,-2682.02,0.00014794,2]
[323693046,1714165899130,-500.0,0.00014794,2]
[323693047,1714165899139,-500.0,0.00014794,2]
[323693048,1714165899148,-1815.94,0.00014794,2]
[323693049,1714165899158,-500.0,0.00014794,2]
[323693050,1714165899168,-500.0,0.00014794,2]
[323693051,1714165899177,-150.0,0.00014814,2]
[323693052,1714165899186,-1137.0,0.00014822,2]
[323693053,1714165899195,-390.89,0.00014832,2]
[323693054,1714165899205,-150.0,0.00014874,2]
[323693055,1714165899214,-150.0,0.00014874,2]
[323693056,1714165899223,-387.74292036,0.000149,2]
[323693057,1714165899232,-12870.91290962,0.000149,2]
[323693058,1714165899241,-300.0,0.0001497,2]
[323693059,1714165899250,-8583.46002936,0.00015,2]
[323693060,1714165899259,-200.0,0.00015,2]
[323693061,1714165899268,-1185.24848846,0.00015,2]
[323693062,1714165899277,-155.0,0.00015,2]
[323693063,1714165899288,-483.0,0.00015,2]
[323693064,1714165899299,-1000.0,0.00015,2]
[323693065,1714165899309,-483.0,0.00015,2]
[323693066,1714165899324,-1409.0,0.00015,2]
[323693067,1714165899338,-1400.84495207,0.00015,7]
[323693068,1714165899352,-12073.0,0.00015,2]
[323693069,1714165899363,-2850.0,0.00015,3]
[323693070,1714165899374,-151435.41745163,0.00015,2]
[323693071,1714165899385,-842.0,0.00015,2]
[323693072,1714165899398,-995.98,0.00015,2]
[323693073,1714165899411,-307.5,0.00015,2]
[323693074,1714165899423,-500.0,0.00015068,2]
[323693075,1714165899435,-615.87,0.00015068,2]
[323693076,1714165899447,-519.06192763,0.00015068,2]
[323693077,1714165899459,-500.0,0.00015068,2]
[323693078,1714165899471,-609.49,0.00015068,2]
[323693079,1714165899484,-654.47,0.00015068,2]
[323693080,1714165899495,-678.23,0.00015068,2]
[323693081,1714165899506,-613.12,0.00015068,2]
[323693082,1714165899516,-646.77,0.00015068,2]
[323693083,1714165899528,-530.65,0.00015068,2]
[323693084,1714165899540,-880.46,0.00015068,2]
[323693085,1714165899552,-1006.3,0.00015068,2]
[323693086,1714165899564,-500.0,0.00015068,2]
[323693087,1714165899576,-565.76604184,0.00015068,2]
[323693088,1714165899588,-1261.56,0.00015068,2]
[323693089,1714165899600,-504.93,0.00015068,2]
[323693090,1714165899611,-1360.51,0.00015068,2]
[323693091,1714165899623,-1108.07,0.00015068,2]
[323693092,1714165899634,-822.7,0.00015068,2]
[323693093,1714165899648,-543.02,0.00015068,2]
[323693094,1714165899659,-500.0,0.00015068,2]
[323693095,1714165899671,-1146.38,0.00015068,2]
[323693096,1714165899682,-1304.31,0.00015068,2]
[323693097,1714165899694,-560.91,0.00015068,2]
[323693098,1714165899705,-500.0,0.00015068,2]
[323693099,1714165899717,-500.0,0.00015068,2]
[323693100,1714165899728,-500.0,0.00015068,2]
[323693101,1714165899739,-921.09,0.00015068,2]
[323693102,1714165899750,-500.0,0.00015068,2]
[323693103,1714165899760,-700.07,0.00015068,2]
[323693104,1714165899771,-1367.84,0.00015068,2]
[323693105,1714165899784,-760.98,0.00015068,2]
[323693106,1714165899797,-748.97,0.00015068,2]
[323693107,1714165899809,-500.0,0.00015068,2]
[323693108,1714165899819,-726.54,0.00015068,2]
[323693109,1714165899830,-550.92,0.00015068,2]
[323693110,1714165899843,-1430.99,0.00015068,2]
[323693111,1714165899854,-570.48,0.00015068,2]
[323693112,1714165899865,-676.01,0.00015068,2]
[323693113,1714165899877,-500.0,0.00015068,2]
[323693114,1714165899888,-1217.26,0.00015068,2]
[323693115,1714165899900,-792.02,0.00015068,2]
[323693116,1714165899912,-500.0,0.00015068,2]
[323693117,1714165899922,-725.24,0.00015068,2]
[323693118,1714165899931,-872.88,0.00015068,2]
[323693119,1714165899941,-940.41,0.00015068,2]
[323693120,1714165899951,-509.95,0.00015068,2]
[323693121,1714165899962,-2000.0,0.00015068,2]
[323693122,1714165899974,-803.02,0.00015068,2]
[323693123,1714165899985,-363.21,0.00015068,2]
[323693124,1714165899994,-500.0,0.00015068,2]
[323693125,1714165900005,-749.95,0.00015068,2]
[323693126,1714165900015,-527.35,0.00015068,2]
[323693127,1714165900027,-500.0,0.00015068,2]
[323693128,1714165900038,-565.11,0.00015068,2]
[323693129,1714165900049,-656.68,0.00015068,2]
[323693130,1714165900060,-626.53,0.00015068,2]
[323693131,1714165900070,-1008.89,0.00015068,2]
[323693132,1714165900081,-837.59,0.00015068,2]
[323693133,1714165900092,-525.53,0.00015068,2]
[323693134,1714165900103,-565.57,0.00015068,2]
[323693135,1714165900113,-1849.17,0.00015068,2]
[323693136,1714165900124,-500.0,0.00015068,2]
[323693137,1714165900135,-1095.79,0.00015068,2]
[323693138,1714165900146,-500.0,0.00015068,2]
[323693139,1714165900157,-1100.72,0.00015068,2]
[323693140,1714165900168,-500.0,0.00015068,2]
[323693141,1714165900179,-294.64805959,0.00015068,2]
[323693142,1714165900190,-609.39,0.00015068,2]
[323693143,1714165900201,-500.0,0.00015068,2]
[323693144,1714165900212,-1415.44,0.00015068,2]
[323693145,1714165900223,-721.08,0.00015068,2]
[323693146,1714165900234,-500.0,0.00015068,2]
[323693147,1714165900245,-521.34,0.00015068,2]
[323693148,1714165900256,-5617.73,0.00015068,2]
[323693149,1714165900267,-8630.93,0.00015068,2]
[323693150,1714165900278,-1052.38,0.00015068,2]
[323693151,1714165900290,-500.0,0.00015068,2]
[323693152,1714165900301,-1229.82,0.00015068,2]
[323693153,1714165900313,-6867.51,0.00015068,2]
[323693154,1714165900323,-600.27,0.00015068,2]
[323693155,1714165900335,-1794.51,0.00015068,2]
[323693156,1714165900346,-7720.32,0.00015068,2]
[323693157,1714165900356,-1596.74,0.00015068,2]
[323693158,1714165900368,-2414.19,0.00015068,2]
[323693159,1714165900379,-500.0,0.00015068,2]
[323693160,1714165900390,-2546.68,0.00015068,2]
[323693161,1714165900401,-11893.77,0.00015068,2]
[323693162,1714165900412,-213.18,0.00015068,2]
[323693163,1714165900423,-500.0,0.00015068,2]
[323693164,1714165900433,-1472.99,0.00015068,2]
[323693165,1714165900443,-1714.54,0.00015068,2]
[323693166,1714165900454,-500.0,0.00015068,2]
[323693167,1714165900464,-3379.18,0.00015068,2]
[323693168,1714165900475,-746.33,0.00015068,2]
[323693169,1714165900486,-500.0,0.00015068,2]
[323693170,1714165900496,-1131.17,0.00015068,2]
[323693171,1714165900507,-1362.32,0.00015068,2]
[323693172,1714165900518,-635.79,0.00015068,2]
[323693173,1714165900528,-1226.03,0.00015068,2]
[323693174,1714165900539,-1261.3,0.00015068,2]
[323693175,1714165900550,-2565.0,0.00015068,2]
[323693176,1714165900561,-6474.87,0.00015068,2]
[323693177,1714165900572,-626.49,0.00015068,2]
[323693178,1714165900582,-5265.92,0.00015068,2]
[323693179,1714165900593,-7575.76,0.00015068,2]
[323693180,1714165900604,-959.47,0.00015068,2]
[323693181,1714165900615,-500.0,0.00015068,2]
[323693182,1714165900626,-894.84,0.00015068,2]
[323693183,1714165900637,-1029.44,0.00015068,2]
[323693184,1714165900648,-1594.94,0.00015068,2]
[323693185,1714165900659,-1585.92,0.00015068,2]
[323693186,1714165900670,-927.21,0.00015068,2]
[323693187,1714165900680,-29278.54,0.00015068,2]
[323693188,1714165900691,-598.42,0.00015068,2]
[323693189,1714165900702,-2169.32,0.00015068,2]
[323693190,1714165900712,-1031.64,0.00015068,2]
[323693191,1714165900723,-500.0,0.00015068,2]
[323693192,1714165900734,-3003.77,0.00015068,2]
[323693193,1714165900744,-500.0,0.00015068,2]
[323693194,1714165900755,-885.97,0.00015068,2]
[323693195,1714165900766,-1452.7,0.00015068,2]
[323693196,1714165900776,-964.95,0.00015068,2]
[323693197,1714165900787,-1299.05,0.00015068,2]
[323693198,1714165900798,-6953.47,0.00015068,2]
[323693199,1714165900809,-598.29,0.00015068,2]
[323693200,1714165900821,-2182.8,0.00015068,2]
[323693201,1714165900832,-500.0,0.00015068,2]
[323693202,1714165900842,-2149.24,0.00015068,2]
[323693203,1714165900854,-1173.04,0.00015068,2]
[323693204,1714165900865,-831.79,0.00015068,2]
[323693205,1714165900876,-2022.3,0.00015068,2]
[323693206,1714165900887,-4234.92,0.00015068,2]
[323693207,1714165900898,-2096.72,0.00015068,2]
[323693208,1714165900909,-1713.59,0.00015068,2]
[323693209,1714165900920,-625.39,0.00015068,2]
[323693210,1714165900931,-3159.71,0.00015068,2]
[323693211,1714165900943,-1338.07,0.00015068,2]
[323693212,1714165900955,-629.77,0.00015068,2]
[323693213,1714165900966,-15953.33,0.00015068,2]
[323693214,1714165900976,-500.0,0.00015068,2]
[323693215,1714165900988,-8716.91,0.00015068,2]
[323693216,1714165900999,-2333.3,0.00015068,2]
[323693217,1714165901010,-2250.5,0.00015068,2]
[323693218,1714165901021,-4686.34,0.00015068,2]
[323693219,1714165901032,-2136.27,0.00015068,2]
[323693220,1714165901043,-1350.24,0.00015068,2]
[323693221,1714165901054,-1193.75,0.00015068,2]
[323693222,1714165901065,-1860.65,0.00015068,2]
[323693223,1714165901077,-1152.1,0.00015068,2]
[323693224,1714165901088,-3493.58,0.00015068,2]
[323693225,1714165901099,-720.21,0.00015068,2]
[323693226,1714165901110,-1609.49,0.00015068,2]
[323693227,1714165901121,-743.96,0.00015068,2]
[323693228,1714165901132,-4354.83,0.00015068,2]
[323693229,1714165901143,-902.48,0.00015068,2]
[323693230,1714165901153,-771.76,0.00015068,2]
[323693231,1714165901164,-937.47,0.00015068,2]
[323693232,1714165901175,-563.05,0.00015068,2]
[323693233,1714165901186,-1806.19,0.00015068,2]
[323693234,1714165901197,-1571.07,0.00015068,2]
[323693235,1714165901207,-2572.91,0.00015068,2]
[323693236,1714165901219,-1736.03,0.00015068,2]
[323693237,1714165901229,-4550.03,0.00015068,2]
[323693238,1714165901240,-702.48,0.00015068,2]
[323693239,1714165901251,-2483.94,0.00015068,2]
[323693240,1714165901262,-683.53,0.00015068,2]
[323693241,1714165901274,-2118.68,0.00015068,2]
[323693242,1714165901284,-2305.98,0.00015068,2]
[323693243,1714165901299,-2824.94,0.00015068,2]
[323693244,1714165901310,-1519.98,0.00015068,2]
[323693245,1714165901322,-1443.87,0.00015068,2]
[323693246,1714165901334,-1079.67,0.00015068,2]
[323693247,1714165901344,-5799.26,0.00015068,2]
[323693248,1714165901354,-500.0,0.00015068,2]
[323693249,1714165901366,-2700.57,0.00015068,2]
[323693250,1714165901376,-1958.57,0.00015068,2]
[323693251,1714165901388,-1238.29,0.00015068,2]
[323693252,1714165901399,-2076.33,0.00015068,2]
[323693253,1714165901409,-726.92,0.00015068,2]
[323693254,1714165901419,-3054.76,0.00015068,2]
[323693255,1714165901430,-978.83,0.00015068,2]
[323693256,1714165901441,-2476.96,0.00015068,2]
[323693257,1714165901452,-897.14,0.00015068,2]
[323693258,1714165901463,-1563.14,0.00015068,2]
[323693259,1714165901473,-1893.28,0.00015068,2]
[323693260,1714165901484,-1013.72,0.00015068,2]
[323693261,1714165901496,-900.63,0.00015068,2]
[323693262,1714165901507,-718.21,0.00015068,2]
[323693263,1714165901518,-555.79,0.00015068,2]
[323693264,1714165901529,-6088.6,0.00015068,2]
[323693265,1714165901539,-1066.3,0.00015068,2]
[323693266,1714165901553,-505.04,0.00015068,2]
[323693267,1714165901563,-500.0,0.00015068,2]
[323693268,1714165901575,-2410.31,0.00015068,2]
[323693269,1714165901586,-820.43,0.00015068,2]
[323693270,1714165901601,-523.49,0.00015068,2]
[323693271,1714165901611,-908.81,0.00015068,2]
[323693272,1714165901622,-500.0,0.00015068,2]
[323693273,1714165901633,-1371.32,0.00015068,2]
[323693274,1714165901644,-560.23,0.00015068,2]
[323693275,1714165901655,-2025.12,0.00015068,2]